bitfinex/quotes_ETHUSD_20260202
["timestamp","ask_amount","ask_price","bid_price","bid_amount"]
[1770033209894,0.0011,2299.0,2297.4,12.14636443]
[1770033210190,0.0011,2299.0,2297.6,12.14636443]
[1770033211794,12.88427544,2299.7,2297.6,12.14636443]
[1770033211795,2.4287,2300.0,2298.1,12.14636443]
[1770033211982,0.913,2299.9,2298.1,12.14636443]
[1770033212902,0.913,2299.9,2298.1,13.23421491]
[1770033213191,0.913,2299.9,2298.1,12.14636443]
[1770033213507,9.13080379,2300.2,2298.5,12.14636443]
[1770033213508,0.0011,2300.2,2298.5,12.14636443]
[1770033214168,12.78187544,2300.1,2298.5,12.14636443]
[1770033214572,12.88427544,2300.0,2298.5,12.14636443]
[1770033215609,4.429689,2299.7,2298.2,12.14636443]
[1770033215978,0.913,2299.6,2298.2,12.14636443]
[1770033216290,19.55477344,2299.5,2298.0,12.14636443]
[1770033216491,5.876498,2299.4,2298.0,12.14636443]
[1770033216702,5.624684,2299.3,2298.0,12.14636443]
[1770033217116,12.78187544,2299.2,2297.2,12.14636443]
[1770033217316,14.62253138,2299.2,2297.2,12.4813255]
[1770033217817,1.84065594,2299.2,2297.2,12.4813255]
[1770033218014,0.913,2299.1,2297.2,12.4813255]
[1770033218591,0.913,2299.1,2297.4,12.97849705]
[1770033219413,0.1024,2299.5,2297.4,12.97849705]
[1770033219414,12.3864895,2299.5,2297.4,12.97849705]
[1770033219620,0.913,2299.1,2297.4,12.97849705]
[1770033219912,0.913,2299.1,2297.2,0.33496107]
[1770033219913,0.913,2299.1,2297.6,12.97849705]
[1770033220920,0.1024,2299.0,2298.2,0.001]
[1770033221119,12.2840895,2298.9,2298.2,0.001]
[1770033221283,0.0011,2299.1,2298.2,0.001]
[1770033221487,1.22961895,2299.1,2298.2,0.001]
[1770033221720,0.913,2299.0,2298.2,0.001]
[1770033227813,12.2851895,2299.1,2298.2,0.001]
[1770033227814,0.913,2298.9,2298.2,0.001]
[1770033228159,12.2840895,2298.6,2297.3,12.97849705]
[1770033228336,2.633513,2298.5,2297.3,12.97849705]
[1770033228526,1.49176025,2298.4,2297.4,1.33134581]
[1770033229154,1.49176025,2298.4,2297.3,12.97849705]
[1770033229450,12.98039058,2298.1,2297.0,0.001]
[1770033229635,0.913,2298.0,2297.0,0.001]
[1770033230813,13.89339058,2298.0,2297.0,0.001]
[1770033231015,1.38933906,2297.9,2297.0,0.001]
[1770033231215,0.913,2298.0,2297.0,0.001]
[1770033233650,12.98039058,2298.3,2297.0,11.7853351]
[1770033233849,0.913,2298.2,2297.0,11.7853351]
[1770033235623,0.913,2298.1,2297.3,11.7843351]
[1770033235840,0.913,2298.1,2297.3,12.96286861]
[1770033236152,0.913,2298.1,2297.3,1.17853351]
[1770033236153,0.0011,2297.8,2297.3,1.17853351]
[1770033236321,0.0011,2297.8,2297.2,0.001]
[1770033236642,0.0011,2297.8,2297.2,11.7853351]
[1770033237655,0.0011,2297.8,2297.2,0.001]
[1770033237949,0.0011,2297.8,2297.2,11.7853351]
[1770033238256,0.0011,2297.8,2297.2,0.001]
[1770033239053,0.0011,2297.8,2297.2,1.17963351]
[1770033240557,0.0011,2297.8,2297.2,0.001]
[1770033243346,0.0011,2297.8,2297.0,0.001]
[1770033243347,12.98149058,2297.8,2297.0,0.001]
[1770033244485,0.0011,2297.8,2297.0,0.001]
[1770033247149,12.98039058,2297.7,2296.8,0.001]
[1770033247327,1.29814906,2297.6,2296.8,11.7853351]
[1770033247530,0.0011,2297.8,2296.8,11.7853351]
[1770033249428,12.63068985,2297.8,2297.0,0.001]
[1770033249635,0.93675942,2297.7,2297.0,0.001]
[1770033249854,0.0011,2297.5,2297.0,0.001]
[1770033251168,0.93702487,2297.4,2297.0,0.001]
[1770033251376,0.9141,2297.5,2297.0,11.77447718]
[1770033251991,0.9141,2297.5,2297.0,0.001]
[1770033254448,0.0011,2297.7,2297.1,11.77347718]
[1770033254666,0.0011,2297.7,2297.3,11.77347718]
[1770033257363,0.0011,2297.7,2297.0,11.77447718]
[1770033259585,0.93966376,2297.6,2296.8,11.77447718]
[1770033259784,0.0011,2297.7,2296.8,11.77447718]
[1770033259969,0.93967109,2297.6,2296.8,11.77447718]
[1770033260153,0.0011,2297.7,2296.8,11.77447718]
[1770033260353,0.93965257,2297.6,2296.8,11.77447718]
[1770033260577,0.0011,2297.7,2296.8,11.77447718]
[1770033260765,0.93965257,2297.6,2296.8,11.77447718]
[1770033260965,0.0011,2297.7,2296.8,11.77447718]
[1770033261165,0.93965274,2297.6,2296.8,11.77447718]
[1770033261366,0.0011,2297.7,2296.8,11.77447718]
[1770033261653,0.0011,2297.7,2296.8,0.001]
[1770033261654,0.93963568,2297.6,2296.8,0.001]
[1770033261872,0.0011,2297.7,2296.8,0.001]
[1770033262184,0.93964264,2297.6,2296.8,0.001]
[1770033262377,1.47266832,2297.7,2296.8,0.001]
[1770033262554,0.93961738,2297.6,2296.8,0.001]
[1770033262755,1.47266832,2297.7,2296.8,0.001]
[1770033263059,0.93961746,2297.6,2296.8,0.001]
[1770033263378,1.47266832,2297.7,2296.8,11.77447718]
[1770033263379,0.0011,2297.7,2296.8,11.77447718]
[1770033263955,0.0011,2297.7,2297.1,11.77347718]
[1770033264277,0.0011,2297.5,2297.1,11.77347718]
[1770033274782,0.0011,2297.7,2297.2,11.77347718]
[1770033275174,14.48264161,2297.6,2297.0,0.001]
[1770033275493,2.38842592,2297.5,2297.0,0.001]
[1770033275696,0.913,2297.6,2297.0,0.001]
[1770033275994,0.94009361,2297.5,2297.0,0.001]
[1770033276171,0.913,2297.6,2297.0,0.001]
[1770033276372,0.94006207,2297.5,2297.0,0.001]
[1770033276572,0.913,2297.6,2297.0,0.001]
[1770033276889,0.0011,2297.4,2297.0,0.001]
[1770033277563,0.0011,2297.4,2297.0,11.77447718]
[1770033277764,0.0011,2297.6,2297.0,12.9520249]
[1770033278178,0.940071,2297.5,2297.0,0.001]
[1770033278383,0.940071,2297.4,2297.0,0.001]
[1770033278587,12.57715476,2297.6,2297.0,0.001]
[1770033278898,0.94010356,2297.5,2297.0,0.001]
[1770033279086,0.94010356,2297.4,2297.0,0.001]
[1770033279417,0.0011,2297.6,2297.0,0.001]
[1770033279587,0.94005551,2297.5,2297.0,0.001]
[1770033279784,0.94005551,2297.4,2297.0,0.001]
[1770033280096,1.6244068,2297.6,2297.0,0.001]
[1770033280288,0.94008765,2297.5,2297.0,0.001]
[1770033280596,0.94008765,2297.4,2297.0,0.001]
[1770033280770,1.6244068,2297.6,2297.0,0.001]
[1770033280973,1.21968485,2297.5,2297.0,0.001]
[1770033281174,0.94004484,2297.4,2297.0,0.001]
[1770033281373,0.94004484,2297.4,2297.0,12.03429464]
[1770033281596,2.79530013,2297.6,2297.0,12.03429464]
[1770033281597,0.0011,2297.6,2297.0,12.03429464]
[1770033284998,0.0011,2297.6,2297.0,0.001]
[1770033287300,0.0011,2297.6,2297.0,12.03429464]
[1770033287512,0.0011,2297.6,2297.1,0.95008042]
[1770033287687,0.0011,2297.6,2297.1,12.98337506]
[1770033289187,0.0011,2297.6,2297.2,0.001]
[1770033289373,0.0011,2297.4,2297.2,0.001]
[1770033290187,0.0011,2297.6,2297.2,12.85275414]
[1770033290399,0.0011,2297.8,2297.3,14.2320376]
[1770033294124,0.3574171,2298.7,2297.7,12.85175414]
[1770033294295,13.34720605,2299.3,2297.9,12.85175414]
[1770033294296,0.0011,2299.0,2297.9,12.85175414]
[1770033294610,0.0011,2299.0,2298.1,12.85175414]
[1770033295511,1.96033981,2299.7,2298.4,12.85175414]
[1770033295685,1.85047923,2299.6,2298.4,12.85175414]
[1770033296009,0.93747923,2299.5,2298.4,12.85175414]
[1770033296315,0.913,2299.6,2298.4,12.85175414]
[1770033296532,0.913,2299.6,2298.6,12.85175414]
[1770033297808,0.39051987,2299.7,2298.6,12.85175414]
[1770033300490,12.16790598,2299.7,2298.3,12.85175414]
[1770033300690,11.77738611,2299.5,2298.3,12.85175414]
[1770033300910,11.77738611,2299.3,2297.9,12.85175414]
[1770033302589,11.77738611,2299.1,2297.9,12.85175414]
[1770033302790,12.69038611,2299.0,2297.9,12.85175414]
[1770033303418,12.69038611,2299.0,2297.6,12.85175414]
[1770033304402,11.77738611,2298.8,2297.6,12.85175414]
[1770033304735,1.17773861,2298.7,2297.6,12.85175414]
[1770033305137,12.95512472,2298.7,2297.5,0.001]
[1770033305355,11.77738611,2298.5,2297.5,0.001]
[1770033306000,0.1024,2298.6,2297.5,12.85275414]
[1770033306207,0.913,2298.9,2297.7,12.85175414]
[1770033306639,12.69038611,2298.9,2297.7,12.85175414]
[1770033307335,0.1024,2299.3,2297.7,12.85175414]
[1770033307508,0.1024,2299.1,2297.7,12.85175414]
[1770033307708,13.25239506,2299.1,2297.8,14.2654571]
[1770033308701,13.25239506,2299.1,2297.8,1.41370296]
[1770033308917,13.25239506,2299.1,2297.5,12.75958075]
[1770033309134,11.92153134,2298.9,2297.5,0.001]
[1770033309302,11.81913134,2298.7,2297.5,0.001]
[1770033309501,0.1024,2298.9,2297.5,0.001]
[1770033309502,11.81913134,2298.5,2297.5,0.001]
[1770033309707,11.81913134,2298.3,2297.5,0.001]
[1770033309938,0.913,2298.2,2297.5,0.001]
[1770033311012,12.73213134,2298.2,2297.5,0.001]
[1770033313807,12.73213134,2298.2,2297.3,0.001]
[1770033314647,12.73213134,2298.2,2297.7,0.001]
[1770033314846,1.27321313,2298.1,2297.7,0.001]
[1770033315343,1.27321313,2298.1,2297.5,0.001]
[1770033316043,13.09234447,2298.1,2297.5,0.001]
[1770033316855,1.27321313,2298.1,2297.5,0.001]
[1770033317027,0.913,2298.2,2297.5,0.001]
[1770033319215,12.73213134,2298.2,2297.5,0.001]
[1770033327025,0.913,2298.2,2297.5,12.75958075]
[1770033327546,0.913,2298.2,2297.5,0.001]
[1770033327948,0.913,2298.2,2297.7,0.001]
[1770033328152,0.0011,2298.0,2297.7,0.001]
[1770033332025,0.913,2298.0,2297.7,12.75958075]
[1770033332422,0.913,2298.0,2297.7,0.001]
[1770033335444,0.0011,2298.2,2297.7,0.001]
[1770033335654,0.0011,2298.2,2297.7,14.03563882]
[1770033337540,0.913,2298.4,2297.8,12.70858075]
[1770033337747,0.93993445,2298.3,2297.8,12.70858075]
[1770033337949,0.913,2298.4,2297.8,12.70858075]
[1770033338164,0.9399701,2298.3,2297.8,12.70858075]
[1770033338380,0.913,2298.4,2297.8,14.10714463]
[1770033338670,0.94036735,2298.3,2297.8,14.10714463]
[1770033338855,0.913,2298.4,2297.8,14.10714463]
[1770033339059,0.94036708,2298.3,2297.8,14.10714463]
[1770033339272,0.913,2298.4,2297.8,14.10714463]
[1770033339474,0.94027128,2298.3,2297.9,1.32295309]
[1770033339634,0.913,2298.4,2297.9,1.32295309]
[1770033339970,0.94027103,2298.3,2297.9,1.32295309]
[1770033340130,0.913,2298.4,2297.9,1.32295309]
[1770033340333,0.94027062,2298.3,2297.9,1.32295309]
[1770033340563,0.913,2298.4,2297.9,14.11797289]
[1770033340733,0.94009682,2298.3,2297.9,14.11797289]
[1770033340939,0.913,2298.4,2297.9,14.11797289]
[1770033341143,0.94009697,2298.3,2297.9,14.11797289]
[1770033341358,0.913,2298.4,2297.9,14.11797289]
[1770033341566,0.93993893,2298.3,2297.9,0.001]
[1770033341858,0.0011,2298.0,2297.9,0.001]
[1770033347149,0.0011,2298.0,2297.9,12.7960198]
[1770033347365,0.0011,2298.0,2297.9,0.001]
[1770033348066,0.913,2298.6,2297.9,12.7960198]
[1770033348261,0.93960403,2298.5,2297.9,12.7960198]
[1770033348442,0.93960403,2298.4,2297.9,12.7960198]
[1770033348765,0.913,2298.6,2297.9,12.7960198]
[1770033348977,0.93957064,2298.5,2297.9,0.001]
[1770033349270,0.93957064,2298.4,2297.9,0.001]
[1770033350341,0.93957064,2298.4,2297.9,12.88947935]
[1770033350760,0.913,2298.6,2297.9,12.88947935]
[1770033350947,0.93954405,2298.5,2297.9,12.88947935]
[1770033351266,0.93954405,2298.4,2297.9,0.001]
[1770033351456,0.913,2298.6,2297.9,0.001]
[1770033351653,15.07206475,2298.5,2297.9,0.001]
[1770033351845,13.70429176,2298.4,2297.9,0.001]
[1770033352051,1.36777299,2298.5,2297.9,0.001]
[1770033352256,0.93956223,2298.4,2297.9,0.001]
[1770033352457,1.36777299,2298.5,2297.9,12.88947935]
[1770033352656,0.93960692,2298.4,2297.9,12.88947935]
[1770033352967,1.36777299,2298.5,2297.9,12.88947935]
[1770033353159,0.93960604,2298.4,2297.9,12.88947935]
[1770033353364,1.36777299,2298.5,2297.9,12.88947935]
[1770033353671,0.9396672,2298.4,2297.9,12.88947935]
[1770033353879,1.36777299,2298.5,2297.9,12.88947935]
[1770033354091,2.35582991,2299.0,2298.0,12.88847935]
[1770033354092,0.0011,2299.0,2298.0,12.88847935]
[1770033356851,0.0011,2299.2,2298.1,12.88847935]
[1770033357046,0.0011,2299.2,2298.1,12.88947935]
[1770033357254,0.0011,2299.2,2298.3,12.88847935]
[1770033357782,0.0011,2298.5,2298.3,12.88847935]
[1770033360604,0.0011,2298.5,2298.1,0.001]
[1770033360808,7.96989987,2298.5,2298.1,0.001]
[1770033361080,20.73462973,2298.5,2297.7,0.001]
[1770033361280,7.96879987,2298.3,2297.7,0.001]
[1770033361461,7.96879987,2298.1,2297.5,0.001]
[1770033361664,2.16476297,2298.4,2297.3,12.88947935]
[1770033361665,2.63258118,2298.4,2297.3,12.88947935]
[1770033361878,2.63258118,2298.4,2297.6,12.88847935]
[1770033361879,2.16476297,2298.4,2297.6,12.88847935]
[1770033362074,7.96879987,2298.2,2297.3,0.001]
[1770033362272,20.73352973,2298.2,2297.3,0.001]
[1770033362464,12.76472986,2298.2,2297.3,0.001]
[1770033362663,13.70246324,2298.1,2297.3,0.001]
[1770033362867,13.70246324,2298.0,2297.3,0.001]
[1770033363071,15.04797618,2297.9,2297.3,0.001]
[1770033363573,2.28324632,2297.9,2297.3,0.001]
[1770033363774,13.94043346,2298.5,2297.3,12.89047935]
[1770033363973,1.85048685,2298.4,2297.3,12.89047935]
[1770033364176,0.913,2298.4,2297.3,12.89047935]
[1770033364374,12.76582986,2298.5,2297.3,12.89047935]
[1770033364375,0.0011,2298.5,2297.3,12.89047935]
[1770033365876,1.34901308,2298.8,2297.6,12.88847935]
[1770033365877,0.43601308,2298.8,2297.6,12.88847935]
[1770033366075,0.43601308,2298.8,2297.9,12.88847935]
[1770033366076,0.43501308,2298.8,2297.9,12.88847935]
[1770033366664,0.43501308,2298.8,2297.7,2.22520497]
[1770033366665,13.19974294,2298.8,2297.7,1.31220497]
[1770033366853,13.19974294,2298.8,2297.6,12.88847935]
[1770033367297,0.43501308,2298.8,2297.6,12.88847935]
[1770033370303,0.43501308,2298.8,2297.8,0.001]
[1770033370791,0.0011,2298.6,2297.8,0.001]
[1770033371292,0.0011,2298.6,2297.8,12.38624671]
[1770033371597,0.0011,2298.6,2298.0,12.38524671]
[1770033376172,0.0011,2298.6,2297.9,1.23862467]
[1770033377291,0.0011,2298.6,2297.9,13.62387138]
[1770033381806,0.0011,2298.6,2297.9,12.38524671]
[1770033381981,0.0011,2298.6,2297.8,12.38624671]
[1770033383911,12.75617096,2298.6,2297.8,0.001]
[1770033384489,12.75507096,2298.4,2297.8,0.001]
[1770033386111,13.66807096,2298.4,2297.8,0.001]
[1770033386489,1.3668071,2298.3,2297.8,0.001]
[1770033386698,14.12187806,2298.3,2297.8,0.001]
[1770033393539,14.12187806,2298.3,2295.0,3.86214816]
[1770033393540,11.77104196,2297.3,2295.0,3.86214816]
[1770033393742,11.77104196,2297.3,2293.5,12.38524671]
[1770033393743,10.1256096,2295.0,2293.5,9.44335171]
[1770033394035,9.77005422,2295.3,2292.8,5.41851966]
[1770033394036,2.48093156,2294.9,2294.5,0.02192742]
[1770033394236,2.48093156,2294.9,2294.0,12.40717413]
[1770033394237,10.7108485,2294.8,2294.6,0.02192742]
[1770033394394,0.93465662,2294.7,2293.7,12.38524671]
[1770033394594,0.93465662,2294.7,2293.4,17.7901787]
[1770033394595,3.89448996,2294.0,2293.4,17.7901787]
[1770033394799,5.45228594,2294.3,2293.4,17.7901787]
[1770033394800,3.89448996,2293.7,2293.4,17.7901787]
[1770033395159,7.77914139,2294.4,2293.4,17.7901787]
[1770033395160,7.77914139,2294.4,2293.4,5.35493199]
[1770033395464,1.16340409,2294.0,2293.0,12.38524671]
[1770033395599,1.16340409,2293.8,2292.6,12.38604671]
[1770033395798,1.16340409,2293.8,2292.8,12.38524671]
[1770033396435,9.77005422,2293.8,2292.8,12.38524671]
[1770033396826,9.77005422,2293.8,2292.7,1.23860467]
[1770033397177,0.02192742,2293.2,2292.3,14.04016957]
[1770033397334,0.913,2293.1,2292.0,12.38524671]
[1770033397701,0.913,2293.0,2292.0,12.38524671]
[1770033397908,9.79198164,2293.8,2292.0,12.38524671]
[1770033397909,0.913,2292.9,2292.0,12.38524671]
[1770033398127,0.913,2292.9,2292.1,1.23852467]
[1770033398505,9.77005422,2293.3,2292.1,1.23852467]
[1770033398711,0.913,2292.8,2292.1,13.68724477]
[1770033398909,0.913,2292.8,2292.1,1.23852467]
[1770033399228,0.913,2292.8,2291.8,12.4495201]
[1770033399408,0.02192742,2293.0,2291.8,12.4495201]
[1770033399409,0.02192742,2292.6,2291.8,12.4495201]
[1770033399607,0.913,2292.7,2291.8,12.4495201]
[1770033399820,0.02192742,2292.6,2291.8,12.4495201]
[1770033400020,0.02192742,2292.6,2291.8,0.0008]
[1770033400326,0.913,2292.5,2291.8,0.0008]
[1770033400635,0.02192742,2292.1,2291.8,0.0008]
[1770033401039,12.62427664,2292.0,2291.3,0.0008]
[1770033401213,12.62427664,2292.0,2290.3,12.4487201]
[1770033401214,0.02192742,2291.5,2290.3,12.4487201]
[1770033401423,0.914,2291.4,2290.3,12.4487201]
[1770033402016,0.02192742,2292.1,2290.6,12.4495201]
[1770033402220,0.914,2292.0,2290.7,13.69367211]
[1770033402418,0.02192742,2291.7,2290.7,13.69367211]
[1770033402649,0.02192742,2291.7,2290.7,1.24495201]
[1770033402831,0.02192742,2292.1,2290.6,12.4495201]
[1770033403038,0.914,2291.6,2290.6,12.4495201]
[1770033404738,0.02192742,2292.1,2290.6,13.54093636]
[1770033404941,1.18533151,2293.8,2290.6,13.54093636]
[1770033404942,12.62427664,2293.0,2290.8,12.4487201]
[1770033405125,0.914,2292.7,2291.0,12.4487201]
[1770033405331,0.914,2292.7,2291.2,12.4487201]
[1770033405624,0.02192742,2292.9,2291.2,12.4487201]
[1770033405625,0.914,2292.6,2291.2,12.4487201]
[1770033405822,0.02192742,2292.9,2291.2,12.4487201]
[1770033406027,0.914,2292.8,2291.2,12.4487201]
[1770033406227,0.914,2292.8,2291.1,14.5]
[1770033406228,0.914,2292.8,2291.4,12.4487201]
[1770033406951,0.02192742,2292.9,2291.4,12.4487201]
[1770033407241,0.914,2292.8,2291.4,12.4487201]
[1770033407628,12.62427664,2293.0,2291.4,12.4487201]
[1770033407824,0.914,2292.9,2291.4,12.4487201]
[1770033408027,0.914,2292.9,2291.5,13.96307931]
[1770033408647,0.914,2292.8,2291.5,13.96307931]
[1770033408942,12.62537664,2293.0,2291.5,13.96307931]
[1770033409145,0.0011,2293.0,2291.5,15.05405268]
[1770033410142,0.0011,2293.0,2291.7,12.72350913]
[1770033410347,0.0011,2293.0,2291.9,12.72350913]
[1770033411045,0.0011,2293.0,2291.9,27.22350913]
[1770033411448,0.0011,2293.0,2292.0,12.72350913]
[1770033413842,0.0011,2293.0,2291.8,17.80055046]
[1770033413843,0.0011,2293.2,2292.1,12.72350913]
[1770033415527,0.0011,2293.2,2292.2,4.589]
[1770033415842,0.0011,2293.2,2292.3,1.73125091]
[1770033416051,0.0011,2293.2,2292.3,14.45476004]
[1770033418946,0.0011,2293.2,2292.3,1.73125091]
[1770033419147,0.0011,2293.2,2292.0,13.81425343]
[1770033419727,0.0103046,2293.1,2292.0,13.81425343]
[1770033420130,0.0011,2293.2,2292.0,13.81425343]
[1770033420338,0.01308472,2294.1,2292.0,13.81425343]
[1770033420339,12.68564039,2294.1,2292.2,12.72350913]
[1770033420642,12.68564039,2294.1,2292.4,12.72350913]
[1770033420851,12.68564039,2294.1,2292.6,12.72350913]
[1770033421573,0.0011,2293.0,2292.6,12.72350913]
[1770033421736,0.0011,2294.2,2292.6,13.8139734]
[1770033421935,0.0011,2294.2,2292.7,12.72350913]
[1770033422270,0.0011,2294.2,2292.9,12.72350913]
[1770033422475,0.0011,2294.2,2293.0,1.36385091]
[1770033423272,2.09776589,2293.9,2293.0,1.36385091]
[1770033423475,0.9343618,2293.8,2293.0,1.36385091]
[1770033423641,0.9343618,2293.7,2293.0,1.36385091]
[1770033423959,1.54180431,2294.0,2293.0,1.36385091]
[1770033424163,0.93436157,2293.9,2293.1,1.408736]
[1770033424358,0.93436157,2293.8,2293.1,1.408736]
[1770033424559,0.93436157,2293.7,2293.1,1.408736]
[1770033424765,0.37840022,2294.0,2293.1,14.13224513]
[1770033425079,0.93459806,2293.9,2293.1,1.408736]
[1770033425375,0.93445836,2293.8,2293.1,1.408736]
[1770033425574,0.93445836,2293.7,2293.1,1.408736]
[1770033425780,13.85014448,2294.2,2293.1,1.408736]
[1770033425938,0.93458612,2294.1,2293.1,1.408736]
[1770033426142,0.93458612,2294.0,2293.1,1.408736]
[1770033426379,13.62022651,2293.9,2293.1,1.408736]
[1770033426664,13.62022651,2293.9,2292.5,14.08736004]
[1770033426665,12.68564039,2293.7,2292.5,14.08736004]
[1770033426880,0.93458612,2293.6,2292.5,14.08736004]
[1770033427064,12.68564039,2293.7,2292.5,14.08736004]
[1770033427247,0.93450977,2293.6,2292.5,14.08736004]
[1770033427438,12.68564039,2293.7,2292.6,1.408736]
[1770033427642,13.61999399,2293.6,2292.6,1.408736]
[1770033427855,13.61999399,2293.6,2292.2,31.09350913]
[1770033427856,0.9343536,2293.5,2292.2,31.09350913]
[1770033428063,12.68564039,2293.6,2292.2,31.09350913]
[1770033428248,0.93442825,2293.5,2292.3,12.87976124]
[1770033428445,1.16340409,2293.8,2292.3,12.87976124]
[1770033428779,0.93425735,2293.7,2292.4,16.11380232]
[1770033428942,0.93425735,2293.6,2292.4,16.11380232]
[1770033429147,0.93425735,2293.5,2292.4,16.11380232]
[1770033429348,13.36608883,2293.8,2292.4,16.11380232]
[1770033429570,0.93415348,2293.7,2292.5,1.61138023]
[1770033429874,13.36608883,2293.8,2292.5,14.49114147]
[1770033429875,0.93415348,2293.6,2292.5,14.49114147]
[1770033430075,1.16340409,2293.8,2292.5,14.49114147]
[1770033430244,0.93415931,2293.7,2292.5,14.49114147]
[1770033430439,0.93415931,2293.6,2292.5,14.49114147]
[1770033430793,1.16340409,2293.8,2292.6,1.77251826]
[1770033430976,0.93406855,2293.7,2292.6,13.79476124]
[1770033431152,0.93406855,2293.6,2292.6,13.79476124]
[1770033431348,0.93406855,2293.5,2292.6,13.79476124]
[1770033431547,1.16340409,2293.8,2292.6,13.79476124]
[1770033431848,0.93468545,2293.7,2292.6,13.79476124]
[1770033432048,0.93468545,2293.6,2292.7,1.37947612]
[1770033432246,0.93468545,2293.5,2292.7,1.37947612]
[1770033432556,1.16340409,2293.8,2292.7,1.37947612]
[1770033432748,0.93537063,2293.7,2292.7,1.37947612]
[1770033433072,0.93537063,2293.6,2292.7,1.37947612]
[1770033433271,0.93537063,2293.5,2292.8,1.51742374]
[1770033433450,0.93537063,2293.4,2292.8,1.51742374]
[1770033433648,1.16340409,2293.7,2292.8,1.51742374]
[1770033433848,0.93637377,2293.6,2292.8,1.51742374]
[1770033434074,0.93637377,2293.5,2292.8,1.51742374]
[1770033434274,0.93637377,2293.4,2292.8,1.51742374]
[1770033434475,0.10428372,2293.3,2292.8,1.51742374]
[1770033434672,1.16340409,2293.6,2292.8,1.51742374]
[1770033435369,2.71460955,2293.7,2292.8,1.51742374]
[1770033435543,1.16340409,2293.7,2292.8,1.51742374]
[1770033437252,1.16340409,2293.6,2292.8,1.51742374]
[1770033438856,13.36608883,2293.6,2292.8,1.51742374]
[1770033439199,13.36608883,2293.5,2292.8,1.51742374]
[1770033439357,13.36608883,2293.5,2292.7,0.001]
[1770033441247,12.20268474,2293.3,2292.7,0.001]
[1770033441474,1.16340409,2293.3,2292.7,0.001]
[1770033441674,1.16340409,2293.4,2292.7,0.001]
[1770033443280,13.36608883,2293.4,2292.7,0.001]
[1770033444475,2.07840409,2293.4,2292.7,0.001]
[1770033445607,14.28108883,2293.4,2292.7,0.001]
[1770033446409,0.94125243,2293.3,2292.7,0.001]
[1770033446610,0.94125243,2293.2,2292.7,0.001]
[1770033446914,0.94125243,2293.1,2292.7,0.001]
[1770033447210,14.28108883,2293.4,2292.9,0.001]
[1770033447425,0.0011,2293.2,2292.9,0.001]
[1770033447624,0.94139764,2293.1,2292.9,0.001]
[1770033447825,0.0011,2293.2,2292.9,0.001]
[1770033447984,0.94139798,2293.1,2292.9,0.001]
[1770033448184,0.0011,2293.2,2292.9,0.001]
[1770033448384,0.94156591,2293.1,2292.9,0.001]
[1770033448612,0.0011,2293.2,2292.7,0.001]
[1770033448613,0.94156695,2293.0,2292.7,0.001]
[1770033448790,0.94156695,2292.9,2292.7,0.001]
[1770033449005,1.16340409,2293.1,2292.6,0.001]
[1770033449006,0.94156695,2292.8,2292.6,0.001]
[1770033449189,13.36608883,2293.1,2292.6,0.001]
[1770033449397,0.94163782,2293.0,2292.6,0.001]
[1770033449603,0.94163782,2292.9,2292.6,0.001]
[1770033449787,0.915,2293.0,2292.6,0.001]
[1770033450125,0.94163654,2292.9,2292.6,0.001]
[1770033450309,0.915,2293.0,2292.6,0.001]
[1770033450487,0.94145282,2292.9,2292.6,0.001]
[1770033450812,0.915,2293.0,2292.6,0.001]
[1770033450993,0.94146062,2292.9,2292.6,0.001]
[1770033451194,0.0011,2293.2,2292.6,12.88076124]
[1770033451395,1.55230546,2293.4,2292.6,12.88076124]
[1770033451396,0.0011,2293.4,2292.8,12.87976124]
[1770033451806,0.0011,2293.4,2292.7,1.28817612]
[1770033452118,0.0011,2293.4,2292.6,0.001]
[1770033452413,12.20378474,2293.4,2292.6,0.001]
[1770033452630,13.11878474,2293.4,2292.6,0.001]
[1770033453314,12.20268474,2293.2,2292.2,3.87]
[1770033453557,13.37950098,2293.2,2292.2,4.257]
[1770033454391,13.37950098,2293.0,2292.2,3.87]
[1770033454622,12.20268474,2292.8,2292.2,3.87]
[1770033455017,1.17681624,2293.0,2292.2,3.87]
[1770033455191,0.915,2292.9,2292.2,3.87]
[1770033455529,13.11768474,2292.9,2292.2,3.87]
[1770033456300,13.11768474,2292.9,2292.2,4.257]
[1770033458548,12.82003912,2292.8,2291.7,0.001]
[1770033458911,12.82003912,2292.4,2291.7,0.001]
[1770033459117,13.73503912,2292.3,2291.7,0.001]
[1770033459437,13.73503912,2292.3,2291.5,0.001]
[1770033459644,14.91185536,2292.3,2291.5,0.001]
[1770033460222,13.73503912,2292.3,2291.5,0.001]
[1770033460440,13.73503912,2292.3,2292.1,0.001]
[1770033460747,13.73503912,2292.3,2291.5,0.001]
[1770033461751,13.73503912,2292.3,2291.3,0.001]
[1770033462148,12.82003912,2292.2,2291.3,0.001]
[1770033462363,12.82003912,2292.2,2291.2,0.001]
[1770033462752,13.99685536,2292.2,2291.2,0.001]
[1770033463064,12.82003912,2291.8,2290.8,0.001]
[1770033463263,10.23517003,2291.9,2290.8,0.001]
[1770033463264,12.82003912,2291.6,2290.8,0.001]
[1770033463559,0.915,2291.7,2290.6,0.0008]
[1770033463560,0.93727485,2291.5,2290.6,0.0008]
[1770033463737,12.82003912,2291.4,2290.6,0.0008]
[1770033463937,12.82003912,2291.2,2290.6,0.0008]
[1770033464344,1.17681624,2291.8,2290.6,0.0008]
[1770033464345,12.82003912,2291.5,2290.6,0.0008]
[1770033464529,0.915,2291.6,2290.6,12.27842799]
[1770033464735,0.915,2291.6,2290.7,13.50557079]
[1770033465152,12.82003912,2291.8,2290.7,13.50557079]
[1770033465350,0.915,2291.5,2290.7,13.50557079]
[1770033465560,13.73503912,2291.5,2290.7,1.2279428]
[1770033465736,12.82003912,2291.5,2290.6,0.0008]
[1770033465931,0.915,2291.6,2290.6,0.0008]
[1770033466560,0.915,2291.5,2290.6,12.27842799]
[1770033466764,0.915,2291.5,2290.6,0.0008]
[1770033467341,0.915,2291.5,2290.6,13.50637079]
[1770033469043,12.82003912,2291.8,2290.6,13.50637079]
[1770033469368,13.68969894,2291.7,2290.6,13.50637079]